fUST/lending_fUST_20240927
["ID","MTS","AMOUNT","RATE_DAILY","PERIOD"]
[339292446,1727441448526,-272.0,0.00019572,2]
[339292448,1727441448535,-272.0,0.00019572,2]
[339292450,1727441448547,-272.0,0.00019572,2]
[339292452,1727441448556,-272.0,0.00019572,2]
[339292454,1727441448565,-272.0,0.00019572,2]
[339292456,1727441448574,-272.0,0.00019572,2]
[339292458,1727441448585,-272.0,0.00019572,2]
[339292460,1727441448594,-272.0,0.00019572,2]
[339292462,1727441448603,-272.0,0.00019572,2]
[339292464,1727441448613,-272.0,0.00019572,2]
[339292466,1727441448622,-272.0,0.00019572,2]
[339292468,1727441448632,-272.0,0.00019572,2]
[339292470,1727441448641,-153.0,0.00019572,2]
[339292472,1727441448651,-153.0,0.00019572,2]
[339292474,1727441448660,-272.0,0.00019572,2]
[339292476,1727441448669,-272.0,0.00019572,2]
[339292478,1727441448678,-272.0,0.00019572,2]
[339292480,1727441448690,-272.0,0.00019572,2]
[339292482,1727441448699,-272.0,0.00019572,2]
[339292484,1727441448708,-272.0,0.00019572,2]
[339292486,1727441448718,-272.0,0.00019572,2]
[339292488,1727441448727,-272.0,0.00019572,2]
[339292490,1727441448737,-272.0,0.00019572,2]
[339292492,1727441448746,-272.0,0.00019572,2]
[339292494,1727441448756,-272.0,0.00019572,2]
[339292496,1727441448765,-272.0,0.00019572,2]
[339292498,1727441448774,-272.0,0.00019572,2]
[339292500,1727441448783,-272.0,0.00019572,2]
[339292502,1727441448792,-153.0,0.00019572,2]
[339292504,1727441448801,-153.0,0.00019572,2]
[339292506,1727441448811,-272.0,0.00019572,2]
[339292508,1727441448820,-272.0,0.00019572,2]
[339292510,1727441448829,-272.0,0.00019572,2]
[339292512,1727441448839,-272.0,0.00019572,2]
[339292514,1727441448848,-272.0,0.00019572,2]
[339292515,1727441448857,-272.0,0.00019572,2]
[339292517,1727441448867,-272.0,0.00019572,2]
[339292519,1727441448876,-272.0,0.00019572,2]
[339292521,1727441448885,-272.0,0.00019572,2]
[339292523,1727441448894,-272.0,0.00019572,2]
[339292525,1727441448903,-272.0,0.00019572,2]
[339292527,1727441448914,-272.0,0.00019572,2]
[339292530,1727441448926,-272.0,0.00019572,2]
[339292532,1727441448937,-272.0,0.00019572,2]
[339292534,1727441448946,-272.0,0.00019598,2]
[339292536,1727441448956,-272.0,0.00019598,2]
[339292538,1727441448965,-272.0,0.00019598,2]
[339292540,1727441448974,-272.0,0.00019598,2]
[339292542,1727441448984,-272.0,0.00019598,2]
[339292544,1727441448994,-272.0,0.00019598,2]
[339292546,1727441449003,-272.0,0.00019598,2]
[339292547,1727441449013,-272.0,0.00019598,2]
[339292549,1727441449022,-272.0,0.00019598,2]
[339292551,1727441449030,-272.0,0.00019598,2]
[339292553,1727441449040,-272.0,0.00019598,2]
[339292555,1727441449049,-272.0,0.00019598,2]
[339292557,1727441449058,-272.0,0.00019598,2]
[339292559,1727441449068,-272.0,0.00019598,2]
[339292561,1727441449077,-272.0,0.00019598,2]
[339292563,1727441449086,-272.0,0.00019598,2]
[339292565,1727441449095,-272.0,0.00019598,2]
[339292567,1727441449103,-272.0,0.00019598,2]
[339292569,1727441449112,-272.0,0.00019598,2]
[339292571,1727441449121,-272.0,0.00019598,2]
[339292573,1727441449131,-272.0,0.00019598,2]
[339292574,1727441449140,-272.0,0.00019598,2]
[339292576,1727441449149,-272.0,0.00019598,2]
[339292578,1727441449159,-272.0,0.00019598,2]
[339292580,1727441449169,-272.0,0.00019598,2]
[339292582,1727441449178,-272.0,0.00019598,2]
[339292584,1727441449189,-272.0,0.00019598,2]
[339292586,1727441449199,-150.112236,0.000196,2]
[339292588,1727441449208,-180.743,0.00019611,2]
[339292590,1727441449218,-698.115446,0.00019647,2]
[339292592,1727441449227,-698.115446,0.00019647,2]
[339292594,1727441449236,-151.0,0.00019647,2]
[339292596,1727441449246,-151.0,0.00019647,2]
[339292598,1727441449255,-151.0,0.00019647,2]
[339292600,1727441449265,-151.0,0.00019647,2]
[339292602,1727441449274,-261.966027,0.00019647,2]
[339292604,1727441449284,-151.0,0.00019647,2]
[339292606,1727441449293,-261.966027,0.00019647,2]
[339292608,1727441449303,-151.0,0.00019647,2]
[339292610,1727441449312,-501.86122269,0.00019721,2]
[339292612,1727441449321,-1000.0,0.00019721,2]
[339292614,1727441449331,-500.0,0.00019721,2]
[339292616,1727441449340,-500.0,0.00019721,2]
[339292618,1727441449349,-500.84471371,0.00019721,2]
[339292620,1727441449358,-160.0,0.00019725,2]
[339292622,1727441449367,-427.38,0.00019726,2]
[339292624,1727441449377,-410.06289939,0.00019726,2]
[339292625,1727441449387,-500.0,0.00019726,2]
[339292627,1727441449396,-155.480681,0.00019726,2]
[339292629,1727441449406,-500.0,0.00019726,2]
[339292631,1727441449416,-510.47063791,0.00019726,2]
[339292633,1727441449426,-151.0,0.00019726,2]
[339292635,1727441449438,-500.0,0.00019726,2]
[339292637,1727441449447,-500.0,0.00019726,2]
[339292639,1727441449457,-891.26,0.00019726,2]
[339292641,1727441449467,-500.0,0.00019726,2]
[339292644,1727441449486,-500.0,0.00019726,2]
[339292646,1727441449499,-151.0,0.00019726,2]
[339292649,1727441449514,-186.911765,0.00019726,2]
[339292651,1727441449523,-243.78557299,0.00019726,2]
[339292653,1727441449534,-432.683752,0.00019726,2]
[339292655,1727441449544,-151.0,0.00019726,2]
[339292657,1727441449554,-500.0,0.00019726,2]
[339292659,1727441449564,-500.0,0.00019726,2]
[339292661,1727441449574,-500.0,0.00019726,2]
[339292663,1727441449585,-238.37174,0.00019726,2]
[339292665,1727441449596,-151.0,0.00019726,2]
[339292667,1727441449605,-151.0,0.00019726,2]
[339292669,1727441449615,-500.0,0.00019726,2]
[339292671,1727441449625,-151.0,0.00019726,2]
[339292673,1727441449634,-151.0,0.00019726,2]
[339292675,1727441449643,-500.0,0.00019726,2]
[339292677,1727441449653,-419.524786,0.00019726,2]
[339292678,1727441449662,-419.524786,0.00019726,2]
[339292681,1727441449673,-500.0,0.00019726,2]
[339292695,1727441449802,-428.283914,0.00019726,2]
[339292697,1727441449811,-1119.92,0.00019726,2]
[339292699,1727441449820,-428.283914,0.00019726,2]
[339292701,1727441449830,-500.0,0.00019726,2]
[339292703,1727441449840,-151.0,0.00019726,2]
[339292705,1727441449850,-383.07136475,0.00019726,2]
[339292707,1727441449859,-1326.72,0.00019726,2]
[339292709,1727441449868,-995.533767,0.00019726,2]
[339292710,1727441449878,-776.6,0.00019726,2]
[339292713,1727441449887,-995.533767,0.00019726,2]
[339292714,1727441449897,-151.0,0.00019726,2]
[339292717,1727441449907,-500.0,0.00019726,2]
[339292719,1727441449916,-523.32495011,0.00019726,2]
[339292721,1727441449926,-500.0,0.00019726,2]
[339292723,1727441449936,-921.01,0.00019726,2]
[339292724,1727441449946,-1083.43,0.00019726,2]
[339292726,1727441449955,-500.0,0.00019726,2]
[339292728,1727441449965,-500.0,0.00019726,2]
[339292730,1727441449974,-845.154898,0.00019726,2]
[339292732,1727441449983,-845.154898,0.00019726,2]
[339292734,1727441449993,-500.0,0.00019726,2]
[339292736,1727441450002,-151.65858076,0.00019726,2]
[339292738,1727441450012,-376.13668,0.00019726,2]
[339292740,1727441450022,-376.13668,0.00019726,2]
[339292742,1727441450031,-500.0,0.00019726,2]
[339292744,1727441450040,-450.1043671,0.00019726,2]
[339292746,1727441450050,-500.0,0.00019726,2]
[339292748,1727441450063,-500.0,0.00019726,2]
[339292750,1727441450073,-500.0,0.00019726,2]
[339292752,1727441450082,-500.0,0.00019726,2]
[339292754,1727441450091,-1149.73,0.00019726,2]
[339292756,1727441450101,-14444.41,0.00019726,2]
[339292758,1727441450110,-221.7,0.00019726,2]
[339292760,1727441450120,-611.24340488,0.00019726,2]
[339292762,1727441450129,-2715.76,0.00019726,2]
[339292764,1727441450139,-500.0,0.00019726,2]
[339292766,1727441450148,-510.17944481,0.00019726,2]
[339292768,1727441450158,-502.64573123,0.00019726,2]
[339292769,1727441450168,-500.0,0.00019726,2]
[339292771,1727441450178,-500.0,0.00019726,2]
[339292773,1727441450189,-266.22467706,0.00019726,2]
[339292775,1727441450199,-353.43,0.00019726,2]
[339292777,1727441450208,-403.19,0.00019726,2]
[339292779,1727441450218,-500.0,0.00019726,2]
[339292781,1727441450227,-525.2,0.00019726,2]
[339292783,1727441450237,-500.0,0.00019726,2]
[339292785,1727441450247,-500.0,0.00019726,2]
[339292788,1727441450257,-500.0,0.00019726,2]
[339292789,1727441450267,-1454.02,0.00019726,2]
[339292791,1727441450276,-500.0,0.00019726,2]
[339292793,1727441450286,-500.0,0.00019726,2]
[339292795,1727441450296,-500.0,0.00019726,2]
[339292797,1727441450306,-500.0,0.00019726,2]
[339292799,1727441450316,-1870.68,0.00019726,2]
[339292801,1727441450326,-1597.88,0.00019726,2]
[339292803,1727441450336,-500.0,0.00019726,2]
[339292805,1727441450345,-500.0,0.00019726,2]
[339292807,1727441450355,-500.0,0.00019726,2]
[339292809,1727441450364,-200.0,0.00019726,2]
[339292810,1727441450374,-296.841706,0.00019754,2]
[339292811,1727441450384,-296.841706,0.00019754,2]
[339292812,1727441450394,-409.24455849,0.00019779,2]
[339292813,1727441450404,-3264.54351685,0.0001979,2]
[339292814,1727441450414,-309.8303991,0.00019863,2]
[339292815,1727441450424,-500.0,0.00019973,2]
[339292816,1727441450436,-500.0,0.00019973,2]
[339292817,1727441450445,-500.0,0.00019973,2]
[339292818,1727441450455,-500.0,0.00019973,2]
[339292819,1727441450465,-507.23894517,0.00019973,2]
[339292820,1727441450474,-500.0,0.00019973,2]
[339292821,1727441450485,-12275.18448806,0.0001999,2]
[339292822,1727441450494,-151.0,0.0001999,2]
[339292823,1727441450510,-161.866156,0.0001999,2]
[339292824,1727441450520,-161.866156,0.0001999,2]
[339292825,1727441450530,-225.103157,0.0001999,2]
[339292826,1727441450540,-151.0,0.0001999,2]
[339292827,1727441450550,-151.0,0.0001999,2]
[339292828,1727441450560,-272.557229,0.0001999,2]
[339292829,1727441450569,-272.557229,0.0001999,2]
[339292830,1727441450579,-256.861246,0.0001999,2]
[339292831,1727441450590,-256.861246,0.0001999,2]
[339292833,1727441450602,-1819.967825,0.0001999,2]
[339292834,1727441450612,-1819.967825,0.0001999,2]
[339292836,1727441450622,-676.436587,0.0001999,2]
[339292838,1727441450632,-676.436587,0.0001999,2]
[339292840,1727441450643,-476.006498,0.0001999,2]
[339292842,1727441450652,-476.006498,0.0001999,2]
[339292844,1727441450661,-160.0,0.00019999,2]
[339292846,1727441450671,-150.112233,0.0002,2]
[339292848,1727441450681,-151.0,0.0002,2]
[339292850,1727441450692,-85976.09351408,0.0002,2]
[339292852,1727441450701,-383.901173,0.0002,2]
[339292854,1727441450711,-383.901173,0.0002,2]
[339292856,1727441450721,-151.0,0.0002,2]
[339292858,1727441450730,-151.0,0.0002,2]
[339292860,1727441450740,-151.0,0.0002,2]
[339292861,1727441450750,-151.0,0.0002,2]
[339292863,1727441450759,-151.0,0.0002,2]
[339292865,1727441450769,-891.26,0.0002,2]
[339292867,1727441450778,-500.0,0.0002,2]
[339292869,1727441450789,-487.52746367,0.0002,2]
[339292872,1727441450799,-500.0,0.0002,2]
[339292874,1727441450810,-181.95433877,0.0002,2]
[339292876,1727441450819,-500.0,0.0002,2]
[339292878,1727441450829,-238.37174,0.0002,2]
[339292880,1727441450839,-151.0,0.0002,2]
[339292882,1727441450851,-589.71,0.0002,2]
[339292884,1727441450862,-419.524786,0.0002,2]
[339292886,1727441450873,-419.524786,0.0002,2]
[339292888,1727441450883,-500.0,0.0002,2]
[339292890,1727441450892,-1119.92,0.0002,2]
[339292892,1727441450902,-287.18062271,0.0002,2]
[339292894,1727441450912,-151.0,0.0002,2]
[339292896,1727441450922,-1326.72,0.0002,2]
[339292898,1727441450931,-995.533767,0.0002,2]
[339292900,1727441450943,-776.6,0.0002,2]
[339292902,1727441450952,-995.533767,0.0002,2]
[339292904,1727441450962,-698.115446,0.0002,2]
[339292906,1727441450972,-698.115446,0.0002,2]
[339292908,1727441450982,-151.0,0.0002,2]
[339292910,1727441450992,-500.0,0.0002,2]
[339292912,1727441451002,-151.0,0.0002,2]
[339292914,1727441451012,-568.28,0.0002,2]
[339292916,1727441451022,-921.01,0.0002,2]
[339292918,1727441451031,-151.0,0.0002,2]
[339292920,1727441451041,-151.0,0.0002,2]
[339292922,1727441451050,-151.0,0.0002,2]
[339292924,1727441451060,-1083.43,0.0002,2]
[339292926,1727441451071,-500.0,0.0002,2]
[339292928,1727441451080,-151.0,0.0002,2]
[339292929,1727441451090,-500.0,0.0002,2]
[339292931,1727441451099,-845.154898,0.0002,2]
[339292933,1727441451109,-845.154898,0.0002,2]
[339292935,1727441451118,-261.966027,0.0002,2]
[339292937,1727441451127,-151.0,0.0002,2]
[339292939,1727441451137,-261.966027,0.0002,2]
[339292941,1727441451146,-151.0,0.0002,2]
[339292943,1727441451156,-500.0,0.0002,2]
[339292945,1727441451166,-208.195853,0.0002,2]
[339292947,1727441451176,-208.195853,0.0002,2]
[339292950,1727441451188,-151.0,0.0002,2]
[339292952,1727441451199,-3000.0,0.0002,2]
[339292954,1727441451209,-376.13668,0.0002,2]
[339292955,1727441451218,-376.13668,0.0002,2]
[339292957,1727441451228,-443.65,0.0002,2]
[339292959,1727441451238,-531.63780286,0.0002,2]
[339292961,1727441451248,-159.13,0.0002,2]
[339292963,1727441451258,-244.740292,0.0002,2]
[339292965,1727441451268,-244.740292,0.0002,2]
[339292967,1727441451278,-388.2669,0.0002,2]
[339292969,1727441451288,-388.2669,0.0002,2]
[339292971,1727441451298,-500.0,0.0002,2]
[339292973,1727441451308,-1149.73,0.0002,2]
[339292975,1727441451318,-14444.41,0.0002,2]
[339292978,1727441451328,-2715.76,0.0002,2]
[339292979,1727441451337,-531.847437,0.0002,2]
[339292981,1727441451347,-531.847437,0.0002,2]
[339292983,1727441451356,-500.0,0.0002,2]
[339292986,1727441451366,-500.0,0.0002,2]
[339292988,1727441451376,-525.2,0.0002,2]
[339292989,1727441451385,-563.574286,0.0002,2]
[339292993,1727441451405,-563.574286,0.0002,2]
[339292995,1727441451417,-179.73,0.0002,2]
[339292997,1727441451427,-500.0,0.0002,2]
[339292999,1727441451438,-500.0,0.0002,2]
[339293001,1727441451448,-1454.02,0.0002,2]
[339293003,1727441451458,-500.0,0.0002,2]
[339293005,1727441451469,-500.0,0.0002,2]
[339293007,1727441451479,-500.0,0.0002,2]
[339293009,1727441451489,-220.80373621,0.0002,2]
[339293011,1727441451499,-1870.68,0.0002,2]
[339293013,1727441451512,-1597.88,0.0002,2]
[339293015,1727441451522,-531.73,0.0002,2]
[339293017,1727441451533,-500.0,0.0002,2]
[339293019,1727441451543,-500.0,0.0002,2]
[339293021,1727441451552,-584.856435,0.0002,2]
[339293023,1727441451563,-584.856435,0.0002,2]
[339293025,1727441451573,-200.0,0.0002,2]
[339293040,1727441451583,-160.0,0.00020272,2]
[339293042,1727441451718,-151.0,0.00020273,2]
[339293044,1727441451728,-891.26,0.00020273,2]
[339293046,1727441451738,-500.0,0.00020273,2]
[339293048,1727441451748,-151.0,0.00020273,2]
[339293050,1727441451758,-151.0,0.00020273,2]
[339293052,1727441451767,-432.683752,0.00020273,2]
[339293054,1727441451776,-151.0,0.00020273,2]
[339293056,1727441451785,-500.0,0.00020273,2]
[339293058,1727441451795,-500.0,0.00020273,2]
[339293060,1727441451804,-151.0,0.00020273,2]
[339293062,1727441451813,-151.0,0.00020273,2]
[339293064,1727441451822,-151.0,0.00020273,2]
[339293066,1727441451832,-302.83364127,0.00020273,2]
[339293068,1727441451842,-428.283914,0.00020273,2]
[339293070,1727441451851,-1119.92,0.00020273,2]
[339293072,1727441451861,-428.283914,0.00020273,2]
[339293074,1727441451870,-1326.72,0.00020273,2]
[339293076,1727441451879,-776.6,0.00020273,2]
[339293078,1727441451889,-500.0,0.00020273,2]
[339293080,1727441451898,-921.01,0.00020273,2]
[339293082,1727441451907,-1083.43,0.00020273,2]
[339293084,1727441451916,-482.37469278,0.00020273,2]
[339293086,1727441451925,-500.0,0.00020273,2]
[339293088,1727441451936,-500.0,0.00020273,2]
[339293090,1727441451946,-500.0,0.00020273,2]
[339293092,1727441451955,-1149.73,0.00020273,2]
[339293093,1727441451964,-14444.41,0.00020273,2]
[339293096,1727441451977,-151.0,0.00020273,2]
[339293098,1727441451986,-2715.76,0.00020273,2]
[339293100,1727441451996,-272.557229,0.00020273,2]
[339293102,1727441452005,-272.557229,0.00020273,2]
[339293104,1727441452015,-500.0,0.00020273,2]
[339293106,1727441452024,-256.861246,0.00020273,2]
[339293108,1727441452034,-256.861246,0.00020273,2]
[339293110,1727441452044,-1819.967825,0.00020273,2]
[339293112,1727441452054,-1819.967825,0.00020273,2]
[339293114,1727441452064,-676.436587,0.00020273,2]
[339293116,1727441452075,-500.0,0.00020273,2]
[339293118,1727441452084,-676.436587,0.00020273,2]
[339293120,1727441452095,-525.2,0.00020273,2]
[339293122,1727441452105,-500.0,0.00020273,2]
[339293124,1727441452114,-500.0,0.00020273,2]
[339293126,1727441452124,-1454.02,0.00020273,2]
[339293128,1727441452134,-500.0,0.00020273,2]
[339293130,1727441452143,-500.0,0.00020273,2]
[339293132,1727441452152,-500.0,0.00020273,2]
[339293134,1727441452162,-1870.68,0.00020273,2]
[339293136,1727441452172,-1597.88,0.00020273,2]
[339293138,1727441452182,-500.0,0.00020273,2]
[339293140,1727441452196,-640.51989,0.00020273,2]
[339293142,1727441452205,-476.006498,0.00020273,2]
[339293144,1727441452214,-476.006498,0.00020273,2]
[339293146,1727441452224,-200.0,0.00020273,2]
[339293148,1727441452234,-429.9175038,0.00020274,2]
[339293150,1727441452244,-151.0,0.00020279,2]
[339293153,1727441452255,-151.0,0.00020279,2]
[339293155,1727441452266,-151.0,0.00020279,2]
[339293157,1727441452275,-151.0,0.00020279,2]
[339293159,1727441452286,-161.866156,0.00020279,2]
[339293161,1727441452297,-161.866156,0.00020279,2]
[339293163,1727441452306,-225.103157,0.00020279,2]
[339293165,1727441452316,-153.2816296,0.00020356,2]
[339293167,1727441452326,-2975.06762685,0.00020376,2]
[339293169,1727441452336,-17710.31058602,0.00020377,2]
[339293171,1727441452348,-146813.0,0.00020377,2]
[339293173,1727441452358,-151.0,0.00020377,2]
[339293175,1727441452369,-151.0,0.00020377,2]
[339293177,1727441452378,-151.0,0.00020377,2]
[339293180,1727441452390,-151.0,0.00020377,2]
[339293182,1727441452400,-151.0,0.00020377,2]
[339293184,1727441452410,-151.0,0.00020377,2]
[339293186,1727441452419,-151.0,0.00020377,2]
[339293188,1727441452434,-151.0,0.00020377,2]
[339293190,1727441452446,-151.0,0.00020377,2]
[339293192,1727441452456,-252.199868,0.00020377,2]
[339293194,1727441452465,-252.199868,0.00020377,2]
[339293196,1727441452474,-243.417248,0.00020377,2]
[339293198,1727441452483,-756.903109,0.00020377,2]
[339293200,1727441452493,-756.903109,0.00020377,2]
[339293202,1727441452502,-151.0,0.00020377,2]
[339293204,1727441452516,-151.0,0.00020377,2]
[339293206,1727441452525,-432.683752,0.00020377,2]
[339293208,1727441452536,-151.0,0.00020377,2]
[339293210,1727441452550,-238.37174,0.00020377,2]
[339293212,1727441452562,-151.0,0.00020377,2]
[339293215,1727441452573,-151.0,0.00020377,2]
[339293217,1727441452584,-151.0,0.00020377,2]
[339293219,1727441452596,-151.0,0.00020377,2]
[339293221,1727441452606,-419.524786,0.00020377,2]
[339293223,1727441452615,-419.524786,0.00020377,2]
[339293225,1727441452626,-428.283914,0.00020377,2]
[339293227,1727441452638,-428.283914,0.00020377,2]
[339293229,1727441452649,-151.0,0.00020377,2]
[339293231,1727441452661,-995.533767,0.00020377,2]
[339293234,1727441452672,-995.533767,0.00020377,2]
[339293236,1727441452682,-698.115446,0.00020377,2]
[339293238,1727441452694,-698.115446,0.00020377,2]
[339293239,1727441452704,-151.0,0.00020377,2]
[339293241,1727441452713,-151.0,0.00020377,2]
[339293244,1727441452723,-151.0,0.00020377,2]
[339293246,1727441452733,-151.0,0.00020377,2]
[339293248,1727441452743,-151.0,0.00020377,2]
[339293250,1727441452752,-151.0,0.00020377,2]
[339293252,1727441452763,-845.154898,0.00020377,2]
[339293254,1727441452774,-845.154898,0.00020377,2]
[339293256,1727441452784,-261.966027,0.00020377,2]
[339293258,1727441452793,-151.0,0.00020377,2]
[339293260,1727441452803,-261.966027,0.00020377,2]
[339293262,1727441452812,-151.0,0.00020377,2]
[339293264,1727441452822,-208.195853,0.00020377,2]
[339293266,1727441452832,-208.195853,0.00020377,2]
[339293268,1727441452842,-151.0,0.00020377,2]
[339293270,1727441452852,-376.13668,0.00020377,2]
[339293272,1727441452861,-376.13668,0.00020377,2]
[339293274,1727441452872,-244.740292,0.00020377,2]
[339293276,1727441452883,-244.740292,0.00020377,2]
[339293279,1727441452894,-388.2669,0.00020377,2]
[339293281,1727441452904,-388.2669,0.00020377,2]
[339293283,1727441452914,-531.847437,0.00020377,2]
[339293285,1727441452923,-531.847437,0.00020377,2]
[339293287,1727441452934,-563.574286,0.00020377,2]
[339293289,1727441452946,-563.574286,0.00020377,2]
[339293290,1727441452955,-584.856435,0.00020377,2]
[339293292,1727441452965,-584.856435,0.00020377,2]
[339293294,1727441452975,-1500.0,0.00020431,2]
[339293295,1727441452985,-466.57739964,0.00020455,2]
[339293297,1727441452994,-404.86682683,0.00020521,2]
[339293299,1727441453003,-1128.71719174,0.00020521,2]
[339293301,1727441453013,-1000.0,0.00020521,2]
[339293302,1727441453022,-1000.0,0.00020521,2]
[339293304,1727441453032,-1000.0,0.00020521,2]
[339293306,1727441453042,-500.0,0.00020537,2]
[339293307,1727441453051,-151.0,0.00020547,2]
[339293309,1727441453062,-161.866156,0.00020547,2]
[339293311,1727441453072,-161.866156,0.00020547,2]
[339293312,1727441453082,-225.103157,0.00020547,2]
[339293314,1727441453092,-891.26,0.00020547,2]
[339293316,1727441453101,-500.0,0.00020547,2]
[339293318,1727441453112,-151.0,0.00020547,2]
[339293319,1727441453122,-500.0,0.00020547,2]
[339293321,1727441453131,-500.0,0.00020547,2]
[339293323,1727441453141,-1119.92,0.00020547,2]
[339293325,1727441453150,-1326.72,0.00020547,2]
[339293326,1727441453160,-776.6,0.00020547,2]
[339293328,1727441453169,-500.0,0.00020547,2]
[339293330,1727441453179,-921.01,0.00020547,2]
[339293332,1727441453191,-1083.43,0.00020547,2]
[339293334,1727441453201,-500.0,0.00020547,2]
[339293335,1727441453212,-500.0,0.00020547,2]
[339293337,1727441453222,-500.0,0.00020547,2]
[339293339,1727441453232,-1149.73,0.00020547,2]
[339293341,1727441453242,-14444.41,0.00020547,2]
[339293342,1727441453251,-151.0,0.00020547,2]
[339293344,1727441453260,-2715.76,0.00020547,2]
[339293346,1727441453270,-272.557229,0.00020547,2]
[339293347,1727441453279,-272.557229,0.00020547,2]
[339293349,1727441453288,-500.0,0.00020547,2]
[339293351,1727441453298,-256.861246,0.00020547,2]
[339293353,1727441453307,-256.861246,0.00020547,2]
[339293355,1727441453317,-1819.967825,0.00020547,2]
[339293357,1727441453333,-1819.967825,0.00020547,2]
[339293359,1727441453346,-676.436587,0.00020547,2]
[339293361,1727441453356,-500.0,0.00020547,2]
[339293362,1727441453366,-676.436587,0.00020547,2]
[339293374,1727441453495,-525.2,0.00020547,2]
[339293376,1727441453509,-500.0,0.00020547,2]
[339293378,1727441453519,-500.0,0.00020547,2]
[339293379,1727441453529,-1454.02,0.00020547,2]
[339293381,1727441453538,-319.21002844,0.00020547,2]
[339293383,1727441453549,-500.0,0.00020547,2]
[339293385,1727441453560,-640.47,0.00020547,2]
[339293387,1727441453570,-1870.68,0.00020547,2]
[339293389,1727441453581,-1597.88,0.00020547,2]
[339293390,1727441453590,-500.0,0.00020547,2]
[339293392,1727441453600,-476.006498,0.00020547,2]
[339293394,1727441453610,-476.006498,0.00020547,2]
[339293396,1727441453620,-200.0,0.00020547,2]
[339293398,1727441453631,-287.0,0.0002059,3]
[339293399,1727441453642,-150.112233,0.000206,4]
[339293401,1727441453653,-1000.0,0.000207,2]
[339293403,1727441453663,-891.26,0.00020821,2]
[339293405,1727441453673,-500.0,0.00020821,2]
[339293407,1727441453682,-500.0,0.00020821,2]
[339293408,1727441453694,-534.17375437,0.00020821,2]
[339293410,1727441453703,-1119.92,0.00020821,2]
[339293412,1727441453713,-1326.72,0.00020821,2]
[339293414,1727441453723,-776.6,0.00020821,2]
[339293415,1727441453733,-500.0,0.00020821,2]
[339293417,1727441453743,-921.01,0.00020821,2]
[339293419,1727441453753,-1083.43,0.00020821,2]
[339293421,1727441453763,-500.0,0.00020821,2]
[339293423,1727441453773,-500.0,0.00020821,2]
[339293424,1727441453782,-500.0,0.00020821,2]
[339293426,1727441453792,-1149.73,0.00020821,2]
[339293428,1727441453803,-14444.41,0.00020821,2]
[339293430,1727441453813,-2715.76,0.00020821,2]
[339293431,1727441453823,-500.0,0.00020821,2]
[339293433,1727441453833,-500.0,0.00020821,2]
[339293435,1727441453842,-525.2,0.00020821,2]
[339293437,1727441453852,-500.0,0.00020821,2]
[339293439,1727441453861,-500.0,0.00020821,2]
[339293440,1727441453870,-1454.02,0.00020821,2]